bitfinex-derivatives/quotes_ETHF0:USTF0_20240904
["timestamp","ask_amount","ask_price","bid_price","bid_amount"]
[1725436190011,0.41571,2405.9,2405.6,3.29575]
[1725436190905,1.03918,2406.1,2405.8,0.41572]
[1725436190906,0.41568,2406.1,2405.8,0.41572]
[1725436191217,0.41569,2406.0,2405.8,3.2078]
[1725436191916,0.4157,2405.9,2405.8,3.2078]
[1725436192215,0.41568,2406.1,2405.8,0.4157]
[1725436192715,0.4157,2405.9,2405.7,0.41573]
[1725436192917,0.4157,2405.9,2405.8,3.2078]
[1725436193417,0.4157,2406.0,2405.8,3.2078]
[1725436193716,1.5379,2406.2,2405.8,3.2078]
[1725436193918,2.57706,2406.2,2405.8,3.2078]
[1725436194112,0.4157,2405.9,2405.8,3.2078]
[1725436195016,4.5725,2405.9,2405.8,3.2078]
[1725436196723,4.1568,2405.9,2405.7,0.41573]
[1725436197020,0.00624519,2406.3,2405.7,3.2078]
[1725436197213,0.41566,2406.2,2405.9,0.4157]
[1725436197415,0.41566,2406.2,2405.9,3.2957]
[1725436197614,0.41566,2406.2,2405.9,2.88]
[1725436197913,0.42188519,2406.3,2405.9,2.88]
[1725436198121,0.00624519,2406.3,2405.9,2.88]
[1725436198416,0.41565,2406.2,2405.9,3.2957]
[1725436198817,0.41567,2406.1,2405.9,2.88]
[1725436200618,4.156,2406.1,2405.7,3.2078]
[1725436200815,0.41569,2406.0,2405.7,3.62354]
[1725436201015,0.41571,2405.9,2405.7,3.2078]
[1725436201613,0.00624519,2406.3,2405.7,3.2078]
[1725436201614,4.84964184,2406.3,2405.7,3.2078]
[1725436201925,0.00624519,2406.3,2405.8,2.88]
[1725436202124,0.41565,2406.2,2405.9,0.41568]
[1725436203225,0.41565,2406.2,2406.0,0.41568]
[1725436203525,0.42188519,2406.3,2406.0,0.41568]
[1725436203730,0.41565,2406.2,2406.0,0.41568]
[1725436203923,0.42188519,2406.3,2406.0,0.41568]
[1725436204130,0.42188519,2406.3,2405.8,2.88]
[1725436204131,0.00624519,2406.3,2405.8,2.88]
[1725436204427,0.4157,2405.9,2405.7,3.2078]
[1725436204926,1.03918,2406.1,2405.7,3.2078]
[1725436205228,0.41571,2405.9,2405.7,3.2078]
[1725436205628,0.4157,2406.0,2405.7,3.62353]
[1725436206428,0.4157,2405.9,2405.7,3.2078]
[1725436206824,1.04535519,2406.3,2405.7,3.2078]
[1725436206825,0.4157,2406.0,2405.7,3.2078]
[1725436207424,0.41571,2405.9,2405.7,3.2078]
[1725436207928,1.03913,2406.2,2405.2,3.0655]
[1725436207929,0.41575,2405.7,2405.4,0.41578]
[1725436208318,1.5757,2405.9,2405.3,6.5036]
[1725436208527,0.41579,2405.4,2405.3,3.2078]
[1725436208935,0.41582,2405.2,2405.1,0.00624519]
[1725436209124,4.57342,2405.2,2405.1,0.00624519]
[1725436209326,5.61299,2405.2,2405.1,0.00624519]
[1725436209833,4.1576,2405.2,2405.1,0.00624519]
[1725436210038,4.84339665,2405.4,2405.1,0.00624519]
[1725436210228,4.84339665,2405.4,2405.2,2.88]
[1725436210433,4.84339665,2405.4,2405.3,0.41581]
[1725436210847,4.84339665,2405.4,2405.3,7.78121]
[1725436211249,4.84339665,2405.4,2405.3,7.3654]
[1725436212041,4.84339665,2405.4,2405.3,3.2078]
[1725436212755,5.25918665,2405.4,2405.3,3.2078]
[1725436212942,4.84339665,2405.4,2405.3,3.2078]
[1725436213147,5.25918665,2405.4,2405.3,3.2078]
[1725436213749,5.25918665,2405.4,2405.2,4.4572]
[1725436213951,0.41581,2405.3,2405.2,4.4572]
[1725436214252,0.41581,2405.3,2405.2,2.88]
[1725436214452,0.41581,2405.3,2405.1,0.00624519]
[1725436214453,0.41582,2405.2,2405.1,0.00624519]
[1725436215546,4.57342,2405.2,2405.1,0.00624519]
[1725436216553,0.41582,2405.2,2405.1,0.00624519]
[1725436217647,5.61299,2405.2,2405.1,0.00624519]
[1725436218155,0.41592,2404.7,2404.4,3.29595]
[1725436218350,0.41593,2404.6,2404.4,2.88]
[1725436218944,0.41592,2404.7,2404.4,2.88]
[1725436219154,0.41593,2404.6,2404.4,2.88]
[1725436219354,0.41594,2404.5,2404.4,2.88]
[1725436219558,0.41596,2404.4,2404.3,0.00624519]
[1725436220561,0.41605,2403.9,2403.8,3.94357879]
[1725436221348,1.45618,2403.9,2403.8,1.06357879]
[1725436221853,0.41608,2403.7,2403.6,2.88624519]
[1725436222047,0.41608,2403.7,2403.6,0.00624519]
[1725436222252,1.45629,2403.7,2403.6,0.00624519]
[1725436222448,1.45629,2403.7,2403.3,3.2078]
[1725436222449,0.41613,2403.4,2403.3,3.2078]
[1725436223163,2.9683,2403.9,2403.3,10.2486]
[1725436223452,2.9683,2403.9,2403.7,2.88]
[1725436223453,0.41606,2403.9,2403.7,2.88]
[1725436223648,3.2078,2404.1,2403.7,2.88]
[1725436223843,0.41604,2404.0,2403.7,2.88]
[1725436224047,3.2078,2404.1,2403.7,2.88]
[1725436224048,0.41605,2403.9,2403.7,2.88]
[1725436224849,3.2078,2404.1,2403.7,2.88]
[1725436225054,0.4161,2403.6,2403.5,2.88]
[1725436225458,0.41609,2403.7,2403.5,2.88]
[1725436225649,0.4161,2403.6,2403.5,2.88]
[1725436226458,0.41613,2403.5,2403.3,3.2078]
[1725436227362,0.41611,2403.6,2403.3,3.62394]
[1725436227557,0.41611,2403.6,2403.5,2.88]
[1725436227760,0.41695671,2403.6,2403.5,2.88]
[1725436232065,0.00084671,2403.6,2403.3,3.2078]
[1725436232262,0.41613,2403.4,2403.3,3.2078]
[1725436232763,0.41613,2403.5,2403.3,3.2078]
[1725436233067,0.00084671,2403.6,2403.3,3.2078]
[1725436233068,0.41613,2403.4,2403.3,3.2078]
[1725436233458,0.41613,2403.5,2403.3,3.2078]
[1725436233666,0.00084671,2403.6,2403.3,3.2078]
[1725436234460,0.41613,2403.4,2403.3,3.2078]
[1725436234859,0.41613,2403.5,2403.3,3.62395]
[1725436235260,0.41613,2403.5,2403.3,3.2078]
[1725436235764,0.41613,2403.4,2403.3,3.2078]
[1725436238358,0.41618,2403.2,2403.0,3.2962]
[1725436238560,1.04034,2403.4,2402.9,1.4382]
[1725436238561,1.04665519,2403.3,2402.9,1.4382]
[1725436238764,0.4162,2403.1,2402.9,1.4382]
[1725436239262,0.4162,2403.0,2402.9,1.4382]
[1725436239463,0.00624519,2403.3,2402.9,1.4382]
[1725436239767,0.4162,2403.1,2402.9,1.4382]
[1725436239966,0.4162,2403.0,2402.9,1.4382]
[1725436240368,0.41618,2403.2,2402.9,1.85441]
[1725436241865,0.00624519,2403.3,2403.2,0.41617]
[1725436242363,0.00624519,2403.3,2403.2,7.45697]
[1725436243361,0.00624519,2403.3,2403.2,3.29617]
[1725436243570,0.00624519,2403.3,2403.2,7.45697]
[1725436244168,0.00624519,2403.3,2403.2,3.29617]
[1725436244657,0.00624519,2403.3,2403.2,2.88]
[1725436244658,0.42239519,2403.3,2403.2,2.88]
[1725436244970,0.42239519,2403.3,2402.9,1.4382]
[1725436244971,0.41617,2403.2,2403.0,2.88]
[1725436245767,0.4162,2403.0,2402.8,7.576]
[1725436246080,0.41621,2403.0,2402.8,7.576]
[1725436246667,0.41622,2402.9,2402.8,6.0878]
[1725436248271,0.41622,2402.9,2402.8,2.88]
[1725436250372,0.41626,2402.7,2402.6,2.88]
[1725436250575,1.4422,2403.0,2402.6,2.88]
[1725436250576,0.41625,2402.8,2402.6,2.88]
[1725436251274,0.41626,2402.7,2402.6,2.88]
[1725436251469,0.41625,2402.8,2402.6,2.88]
[1725436252066,1.4422,2403.0,2402.6,2.88]
[1725436252364,0.00624519,2403.3,2403.2,0.41617]
[1725436252574,0.00624519,2403.3,2403.2,7.5444]
[1725436252769,0.00624519,2403.3,2403.2,17.7052]
[1725436253170,0.00624519,2403.3,2403.2,16.66477]
[1725436253871,0.00084671,2403.6,2403.5,0.41612]
[1725436254177,0.00084671,2403.6,2403.5,6.50392]
[1725436254365,0.00084671,2403.6,2403.5,10.66472]
[1725436257273,0.00084671,2403.6,2403.5,10.2486]
[1725436257472,0.00084671,2403.6,2403.5,10.66472]
[1725436258277,0.00084671,2403.6,2403.5,10.2486]
[1725436258578,0.00084671,2403.6,2403.3,0.00624519]
[1725436258878,0.00084671,2403.6,2403.3,2.88624519]
[1725436258879,0.41613,2403.5,2403.3,2.88624519]
[1725436259073,0.41613,2403.4,2403.3,2.88624519]
[1725436259771,0.41613,2403.4,2403.3,0.00624519]
[1725436260877,4.57693,2403.4,2403.3,0.00624519]
[1725436261081,5.61727,2403.4,2403.3,0.00624519]
[1725436261582,0.41613,2403.4,2403.3,0.00624519]
[1725436262080,11.61727,2403.4,2403.3,0.00624519]
[1725436262280,5.61727,2403.4,2403.3,0.00624519]
[1725436262788,4.57693,2403.4,2403.3,0.00624519]
[1725436262983,4.6562,2403.5,2403.3,0.00624519]
[1725436263184,1.99695671,2403.6,2403.3,0.00624519]
[1725436263783,0.41612,2403.5,2403.3,0.00624519]
[1725436263976,0.41613,2403.4,2403.3,0.00624519]
[1725436264184,3.62393,2403.4,2403.3,0.00624519]
[1725436265584,7.78473,2403.4,2403.3,0.00624519]
[1725436266974,7.78473,2403.4,2402.8,3.2078]
[1725436266975,0.41622,2402.9,2402.8,3.2078]
[1725436267481,0.41628,2402.6,2402.2,3.62413]
[1725436267690,14.41,2402.9,2402.6,0.41627]
[1725436267691,3.62403,2402.9,2402.6,0.41627]
[1725436267982,0.41624,2402.8,2402.5,0.41628]
[1725436268287,0.41626,2402.7,2402.4,3.2963]
[1725436268685,3.62403,2402.9,2402.5,0.41629]
[1725436268991,0.41623,2402.9,2402.5,3.62409]
[1725436269186,3.2078,2403.1,2402.7,0.41624]
[1725436269387,0.4162,2403.0,2402.7,0.41624]
[1725436269683,3.2078,2403.1,2402.6,2.88]
[1725436269684,0.41625,2402.8,2402.6,2.88]
[1725436269889,3.2078,2403.1,2402.6,2.88]
[1725436270184,3.2078,2403.1,2402.8,0.41624]
[1725436270387,3.62399,2403.1,2402.8,0.41624]
[1725436270587,1.4562,2403.3,2402.8,6.0878]
[1725436270781,0.41618,2403.2,2402.9,0.41622]
[1725436270984,1.4562,2403.3,2402.8,6.0878]
[1725436270985,1.87236,2403.3,2402.8,6.0878]
[1725436271177,1.4562,2403.3,2402.9,0.41622]
[1725436271380,0.41618,2403.2,2402.9,0.41622]
[1725436271887,1.46,2403.4,2403.1,3.2078]
[1725436272083,0.00084671,2403.6,2403.5,0.41612]
[1725436272283,0.00084671,2403.6,2403.5,10.66472]
[1725436274087,0.00084671,2403.6,2403.5,3.62392]
[1725436274287,0.00084671,2403.6,2403.5,7.78472]
[1725436274493,0.00084671,2403.6,2403.5,13.78472]
[1725436274691,0.00624519,2403.8,2403.7,0.41608]
[1725436274994,0.41593,2404.6,2404.2,0.41599]
[1725436275182,3.62373,2404.6,2404.1,2.88]
[1725436275483,1.5037,2404.8,2404.3,0.41598]
[1725436275484,5.08931,2404.8,2404.3,0.41598]
[1725436275690,4.6734,2404.8,2404.4,2.88]
[1725436275896,4.6734,2404.8,2404.6,2.88]
[1725436275897,0.00624519,2404.8,2404.6,2.88]
[1725436276198,0.00624519,2404.8,2404.7,0.41591]
[1725436276383,0.00624519,2404.8,2404.7,6.09271]
[1725436276585,0.00624519,2404.8,2404.7,12.09271]
[1725436276891,0.00624519,2404.8,2404.7,11.6768]
[1725436277193,4.16464519,2404.8,2404.4,3.2078]
[1725436277394,0.41592,2404.7,2404.4,3.2078]
[1725436277582,0.00624519,2404.8,2404.4,3.2078]
[1725436277780,0.41593,2404.6,2404.4,3.2078]
[1725436277990,0.41594,2404.5,2404.4,3.2078]
[1725436278894,0.41599,2404.3,2404.1,2.88]
[1725436279088,0.41597,2404.4,2404.1,2.88]
[1725436279891,1.84685,2404.5,2404.1,2.88]
[1725436280096,4.7367,2404.6,2404.1,2.88]
[1725436280097,1.5289,2404.6,2404.3,0.41598]
[1725436280487,3.21404519,2404.8,2404.4,0.41595]
[1725436280488,0.42213519,2404.8,2404.4,0.41595]
[1725436281385,0.00624519,2404.8,2404.7,0.41591]
[1725436281584,0.00624519,2404.8,2404.7,3.29591]
[1725436281783,0.00624519,2404.8,2404.7,13.45431]
[1725436282792,0.00624519,2404.8,2404.7,2.88]
[1725436283101,0.00624519,2404.8,2404.7,7.45431]
[1725436284401,0.00624519,2404.8,2404.7,7.0384]
[1725436284894,0.00624519,2404.8,2404.7,2.88]
[1725436285291,0.00624519,2404.8,2404.6,4.7448]
[1725436285485,0.42213519,2404.8,2404.6,3.2078]
[1725436285689,0.00624519,2404.8,2404.6,3.2078]
[1725436286500,0.41591,2404.7,2404.6,3.2078]
[1725436286697,0.41592,2404.7,2404.3,6.50378]
[1725436287888,0.41592,2404.7,2404.3,6.0878]
[1725436288289,0.41593,2404.6,2404.3,6.0878]
[1725436288496,0.41596,2404.4,2404.3,6.0878]
[1725436288797,0.41596,2404.4,2404.0,3.2078]
[1725436288998,1.03987,2404.5,2404.0,3.2078]
[1725436289203,0.41601,2404.1,2404.0,3.2078]
[1725436289604,0.41601,2404.1,2403.8,2.88]
[1725436290595,0.41607,2403.8,2403.6,2.88]
[1725436291393,0.41608,2403.7,2403.6,2.88]
[1725436291896,0.41608,2403.8,2403.5,0.00624519]
[1725436292800,3.0619,2403.9,2403.7,0.41608]
[1725436293108,3.0619,2403.9,2403.6,3.29609]
[1725436293397,0.41601,2404.2,2403.8,3.29606]
[1725436293703,3.2078,2404.3,2403.9,0.41604]
[1725436293704,0.41599,2404.3,2403.9,0.41604]
[1725436293898,3.2078,2404.4,2403.9,0.41604]
[1725436294208,0.416,2404.2,2403.8,3.29605]
[1725436294509,0.41599,2404.3,2404.0,0.41603]
[1725436294710,0.41599,2404.3,2403.9,0.41604]
[1725436295903,0.416,2404.2,2403.8,4.80635]
[1725436296105,0.416,2404.2,2403.9,0.41605]
[1725436296401,0.41599,2404.3,2403.8,4.3903]
[1725436296609,0.41599,2404.3,2403.9,0.41604]
[1725436296908,3.2078,2404.4,2403.8,4.3903]
[1725436296909,0.41602,2404.1,2403.8,4.3903]
[1725436297204,0.41601,2404.2,2403.8,4.80636]
[1725436297997,0.41601,2404.1,2403.8,4.80636]
[1725436298199,3.2078,2404.4,2403.8,2.88]
[1725436298502,0.4161,2403.6,2403.5,0.00624519]
[1725436298705,3.6239,2403.6,2403.5,0.00624519]
[1725436300810,8.82496,2403.6,2403.5,0.00624519]
[1725436301303,1.04036,2403.4,2402.9,2.88]
[1725436301505,0.41619,2403.1,2402.9,2.88]
[1725436302102,6.1526,2403.3,2402.9,2.88]
[1725436302310,0.4162,2403.1,2402.9,2.88]
[1725436302508,6.15884519,2403.3,2402.9,2.88]
[1725436302702,0.41619,2403.1,2402.9,2.88]
[1725436302898,0.41617,2403.2,2402.9,3.29621]
[1725436303097,5.15941519,2403.3,2402.9,3.29621]
[1725436303304,1.53544519,2403.3,2403.2,0.41617]
[1725436303505,1.53544519,2403.3,2403.1,3.29618]
[1725436304213,1.53544519,2403.3,2403.1,2.88]
[1725436304617,1.95160519,2403.3,2403.1,2.88]
[1725436304905,1.95159519,2403.3,2403.1,2.88]
[1725436305302,0.41619,2403.1,2403.0,3.2078]
[1725436305815,0.41619,2403.1,2403.0,7.3694]
[1725436308012,0.41619,2403.1,2403.0,3.2078]
[1725436308211,0.42240519,2403.3,2403.1,0.41618]
[1725436308514,0.42240519,2403.3,2403.0,3.62399]
[1725436308810,0.41617,2403.2,2403.0,3.62399]
[1725436309009,0.41619,2403.1,2403.0,3.2078]
[1725436309609,0.41617,2403.2,2403.0,7.3694]
[1725436309811,0.41619,2403.1,2403.0,3.2078]
[1725436310208,0.41622,2402.9,2402.8,2.88]
[1725436311201,0.41619,2403.1,2402.8,2.88]
[1725436311406,0.41622,2402.9,2402.8,2.88]
[1725436311602,0.41619,2403.1,2402.8,2.88]
[1725436311802,3.21404519,2403.3,2402.7,3.2078]
[1725436312010,0.41628,2402.6,2402.4,7.5908]
[1725436312208,0.41628,2402.6,2402.4,4.7108]
[1725436312412,4.24838,2402.9,2402.4,5.1271]
[1725436312413,0.41626,2402.7,2402.4,5.1271]
[1725436312717,0.41627,2402.6,2402.4,5.1271]
[1725436313014,0.41627,2402.6,2402.4,7.5908]
[1725436313713,0.41629,2402.6,2402.4,6.0878]
[1725436314718,0.41629,2402.5,2402.4,6.0878]
[1725436315015,0.41629,2402.5,2402.4,3.2078]
[1725436317421,0.41627,2402.7,2402.4,6.5041]
[1725436317719,0.41625,2402.8,2402.5,0.41628]
[1725436318814,0.41626,2402.7,2402.4,6.5041]
[1725436319518,0.41627,2402.6,2402.4,6.0878]
[1725436319725,0.41629,2402.5,2402.4,6.0878]
[1725436320533,0.41629,2402.5,2402.4,3.2078]
[1725436320925,1.45702,2402.5,2402.4,3.2078]
[1725436321236,0.41633,2402.3,2402.2,2.88]
[1725436323730,0.41635,2402.2,2402.0,2.88]
[1725436323929,0.41635,2402.2,2402.0,3.29638]
[1725436324229,0.41635,2402.2,2402.0,2.88]
[1725436324643,3.2078,2402.2,2401.8,2.9173]
[1725436324935,0.41639,2401.9,2401.6,0.41644]
[1725436325535,0.00624519,2402.0,2401.5,2.88]
[1725436325724,2.51844,2401.8,2401.1,3.2078]
[1725436325929,0.41654,2401.1,2400.7,3.2078]
[1725436326234,2.88,2401.5,2400.5,2.88]
[1725436326235,3.2078,2401.2,2400.5,2.88]
[1725436326437,2.9959,2401.1,2400.6,0.41662]
[1725436326635,0.41657,2401.0,2400.6,0.41662]
[1725436327142,0.41659,2400.8,2400.5,2.88]
[1725436327333,5.8759,2401.1,2400.3,6.0878]
[1725436327533,0.00624519,2400.9,2400.7,0.4166]
[1725436328636,0.00624519,2400.9,2400.7,0.41659]
[1725436329149,0.00624519,2400.9,2400.8,0.41659]
[1725436329335,0.00624519,2400.9,2400.8,1.45806]
[1725436329535,0.00624519,2400.9,2400.8,14.55816]
[1725436330031,0.4164,2401.9,2401.1,1.04134]
[1725436330341,0.41643,2401.8,2401.4,0.41647]
[1725436330643,0.41646,2401.5,2401.4,1.4783]
[1725436331032,0.41646,2401.5,2401.2,1.56644519]
[1725436331335,3.6243,2401.3,2401.2,0.00624519]
[1725436331538,3.2078,2401.3,2401.2,0.00624519]
[1725436332438,3.62429,2401.4,2401.2,0.00624519]
[1725436333540,1.5272,2401.6,2401.2,0.42274519]
[1725436333848,4.735,2401.6,2401.2,0.42274519]
[1725436334042,5.15145,2401.6,2401.3,0.41649]
[1725436334345,4.735,2401.6,2401.3,0.41649]
[1725436334537,4.735,2401.6,2401.2,0.42275519]
[1725436334538,3.2078,2401.5,2401.2,0.42275519]
[1725436334740,3.2078,2401.5,2401.3,0.4165]
[1725436334934,3.2078,2401.5,2401.2,0.42274519]
[1725436334935,3.62426,2401.5,2401.2,0.42274519]
[1725436335134,3.2078,2401.4,2401.2,0.42274519]
[1725436335342,3.62429,2401.4,2401.2,0.00624519]
[1725436335545,0.41649,2401.4,2401.2,0.00624519]
[1725436335753,0.4165,2401.3,2401.2,0.00624519]
[1725436336142,5.62255,2401.3,2401.2,0.00624519]
[1725436336448,0.41659,2400.8,2400.6,3.2078]
[1725436336645,0.41656,2401.0,2400.7,0.4166]
[1725436337747,0.41656,2401.0,2400.6,3.62441]
[1725436338442,3.2078,2401.1,2400.6,3.2078]
[1725436338640,0.4166,2400.7,2400.6,3.2078]
[1725436339640,0.41658,2400.9,2400.6,3.2078]
[1725436339834,1.97916,2401.0,2400.7,0.4166]
[1725436340035,3.2078,2401.1,2400.7,1.4415]
[1725436340238,0.41652,2401.2,2400.9,0.41656]
[1725436340437,5.79498584,2401.5,2400.7,1.4415]
[1725436340438,3.2078,2401.3,2400.7,1.4415]
[1725436340639,0.41652,2401.2,2400.7,1.4415]
[1725436340942,0.41652,2401.2,2400.9,0.41656]
[1725436341137,0.41651,2401.3,2400.9,0.41656]
[1725436341447,0.41652,2401.2,2400.9,0.41656]
[1725436342552,0.41656,2401.0,2400.7,1.8581]
[1725436342845,3.62436,2401.0,2400.7,1.8581]
[1725436343052,0.41658,2400.9,2400.7,1.4415]
[1725436343252,0.41659,2400.8,2400.6,3.2078]
[1725436343553,0.41657,2400.9,2400.6,3.62442]
[1725436343753,0.41659,2400.8,2400.6,3.2078]
[1725436344051,0.4166,2400.7,2400.6,3.2078]
[1725436344757,0.41664,2400.5,2400.4,3.2078]
[1725436345242,1.04151,2400.8,2400.2,4.25668]
[1725436345443,3.62443,2400.6,2400.3,0.41666]
[1725436345743,3.2078,2400.6,2400.4,0.41665]
[1725436346052,1.5616,2400.9,2400.3,3.2078]
[1725436346053,1.97818,2400.9,2400.3,3.2078]
[1725436346541,1.5616,2400.9,2400.7,0.4166]
[1725436346851,5.92229,2401.6,2400.8,0.41658]
[1725436346852,0.41654,2401.1,2400.8,0.41658]
[1725436347046,3.2078,2401.4,2400.6,3.2078]
[1725436347243,0.41656,2401.0,2400.7,0.4166]
[1725436347450,0.41656,2401.0,2400.5,6.7995]
[1725436347650,0.41657,2400.9,2400.6,0.41661]
[1725436347941,0.41661,2400.7,2400.4,1.94924]
[1725436348146,0.41661,2400.7,2400.4,1.94925]
[1725436349150,1.04122,2401.4,2400.6,3.2078]
[1725436349453,0.41656,2401.0,2400.7,0.4166]
[1725436349651,0.41656,2401.0,2400.6,3.2078]
[1725436349652,1.0413,2401.2,2400.6,3.62441]
[1725436349845,1.0413,2401.2,2400.5,3.84]
[1725436349846,4.06048,2401.3,2400.5,3.84]
[1725436350048,4.06048,2401.3,2400.6,3.2078]
[1725436350049,0.41654,2401.1,2400.6,3.2078]
[1725436350246,4.06048,2401.3,2400.6,3.2078]
[1725436350558,0.4166,2400.7,2400.6,3.2078]
[1725436351252,1.04138,2401.0,2400.4,1.5326]
[1725436351253,0.41662,2400.6,2400.4,1.5326]
[1725436351452,0.41661,2400.7,2400.4,1.94924]
[1725436351840,1.04143,2400.9,2400.4,1.5326]
[1725436352045,1.04143,2400.9,2400.4,1.94925]
[1725436352252,0.41661,2400.7,2400.4,1.94925]
[1725436352452,0.41662,2400.6,2400.4,1.5326]
[1725436352849,0.41661,2400.7,2400.4,1.94925]
[1725436353056,0.41662,2400.6,2400.4,1.5326]
[1725436353251,1.90769,2400.8,2400.5,0.41663]
[1725436353667,1.9077,2400.8,2400.5,0.41663]
[1725436354253,1.4911,2400.8,2400.6,0.41662]
[1725436354459,2.60857,2401.3,2400.7,3.2078]
[1725436354651,0.41656,2401.0,2400.7,3.62439]
[1725436355055,0.41657,2400.9,2400.7,3.62439]
[1725436355455,1.4158,2401.2,2400.7,3.62439]
[1725436355456,0.41656,2401.0,2400.7,3.62439]
[1725436355854,0.41657,2400.9,2400.7,3.62439]
[1725436356053,0.41656,2401.0,2400.7,3.62439]
[1725436356256,0.41657,2400.9,2400.7,3.62439]
[1725436356554,1.04134,2401.1,2400.7,3.2078]
[1725436356759,0.41658,2400.9,2400.7,3.2078]
[1725436356955,0.41657,2400.9,2400.7,3.2078]
[1725436357351,0.41657,2400.9,2400.7,3.6244]
[1725436357555,0.41657,2400.9,2400.7,3.2078]
[1725436358852,1.4158,2401.2,2400.7,3.6244]
[1725436358853,0.41656,2401.0,2400.7,3.6244]
[1725436359163,0.41657,2401.0,2400.7,3.6244]
[1725436359556,0.41654,2401.1,2400.8,0.41658]
[1725436359848,1.4158,2401.2,2400.9,0.41656]
[1725436359849,1.83233,2401.2,2400.9,0.41656]
[1725436360057,0.41654,2401.1,2400.9,0.41656]
[1725436360245,0.41654,2401.1,2400.8,1.86217]
[1725436361057,0.41654,2401.1,2400.9,0.41657]
[1725436361259,1.83233,2401.2,2400.9,0.41657]
[1725436361663,0.41653,2401.1,2400.9,0.41657]
[1725436362554,0.41653,2401.1,2400.8,1.86218]
[1725436363156,0.41657,2400.9,2400.8,1.4456]
[1725436363356,2.45711,2401.2,2400.7,3.2078]
[1725436363556,0.41657,2400.9,2400.7,3.2078]
[1725436363850,0.41656,2401.0,2400.7,3.6244]
[1725436364649,2.45711,2401.2,2400.7,3.2078]
[1725436364650,0.41657,2400.9,2400.7,3.2078]
[1725436364855,0.41658,2400.9,2400.7,3.2078]
[1725436365260,0.41656,2401.0,2400.7,3.6244]
[1725436365654,0.41656,2401.0,2400.7,3.2078]
[1725436365861,0.41656,2401.0,2400.7,3.6244]
[1725436366366,0.41656,2401.0,2400.7,3.2078]
[1725436367159,2.45711,2401.2,2400.7,3.2078]
[1725436367368,0.41659,2400.8,2400.7,3.2078]
[1725436368060,5.66491,2401.2,2400.7,7.3734]
[1725436368061,0.41658,2400.9,2400.7,7.3734]
[1725436368263,0.41658,2400.9,2400.7,3.2078]
[1725436369168,0.41656,2401.0,2400.7,3.6244]
[1725436370868,0.41657,2400.9,2400.7,3.2078]
[1725436371661,0.41657,2400.9,2400.6,6.50441]
[1725436372569,0.41658,2400.9,2400.6,3.62441]
[1725436373069,0.41657,2400.9,2400.6,3.62441]
[1725436373273,0.41656,2401.0,2400.7,0.4166]
[1725436373571,0.41656,2401.0,2400.6,3.2078]
[1725436373572,0.41657,2400.9,2400.6,3.62441]
[1725436373774,0.41657,2400.9,2400.7,0.4166]
[1725436374374,0.41657,2400.9,2400.6,3.62441]
[1725436374573,0.4166,2400.7,2400.6,3.2078]
[1725436375672,0.41664,2400.5,2400.2,6.50448]
[1725436375893,1.83633,2400.6,2400.3,0.41667]
[1725436376669,1.4197,2400.6,2400.2,6.0878]
[1725436376969,1.4197,2400.6,2400.3,0.41666]
[1725436377372,1.83632,2400.6,2400.3,0.41666]
[1725436377565,5.2072,2400.5,2399.8,3.2078]
[1725436377768,6.09404519,2400.4,2399.7,3.2078]
[1725436378065,0.42290519,2400.4,2400.1,0.4167]
[1725436378663,0.41667,2400.3,2400.0,3.62451]
[1725436378875,0.4167,2400.2,2400.0,3.2078]
[1725436379063,0.41668,2400.3,2400.0,3.2078]
[1725436379269,0.00624519,2400.4,2400.1,0.4167]
[1725436379463,0.42290519,2400.4,2400.1,1.4601]
[1725436379669,0.42290519,2400.4,2400.1,1.87681]
[1725436380169,0.00624519,2400.4,2400.1,1.8768]
[1725436380963,0.42290519,2400.4,2400.1,1.4601]
[1725436381678,0.41668,2400.3,2400.1,1.4601]
[1725436382064,0.42290519,2400.4,2400.1,1.8768]
[1725436382665,0.41669,2400.2,2400.1,1.4601]
[1725436382969,0.00624519,2400.4,2400.1,1.87681]
[1725436383279,0.41667,2400.3,2400.1,1.4601]
[1725436384063,0.41667,2400.3,2400.0,3.2078]
[1725436384064,0.41671,2400.1,2400.0,3.2078]
[1725436384769,1.89811,2400.1,2400.0,3.2078]
[1725436387166,0.41676,2399.8,2399.7,2.9518]
[1725436387373,0.41676,2399.8,2399.5,0.4168]
[1725436387574,0.41676,2399.8,2399.4,4.4339]
[1725436387880,0.41676,2399.8,2399.5,0.41681]
[1725436388074,0.41675,2399.9,2399.5,0.41681]
[1725436388478,1.04183,2400.0,2399.4,3.29682]
[1725436388677,0.41678,2399.7,2399.4,3.29682]
[1725436388874,4.6892,2400.1,2399.7,0.41677]
[1725436389079,5.10591,2400.1,2399.8,0.41675]
[1725436389284,5.10591,2400.1,2399.8,3.33875]
[1725436389285,4.6892,2400.1,2399.8,3.33875]
[1725436389469,5.10591,2400.1,2399.8,3.33875]
[1725436389975,4.6892,2400.1,2399.8,2.922]
[1725436390279,1.9609,2400.2,2399.9,3.2078]
[1725436390280,0.4167,2400.2,2399.9,3.2078]
[1725436390678,0.41672,2400.1,2399.8,2.922]
[1725436390887,0.4167,2400.2,2399.9,0.41674]
[1725436391074,0.4167,2400.2,2399.8,2.922]
[1725436391284,0.4167,2400.2,2399.9,0.41673]
[1725436391678,3.32088,2400.3,2400.0,0.41672]
[1725436391885,3.32088,2400.3,2399.8,6.1298]
[1725436391886,0.42290519,2400.4,2400.1,0.4167]
[1725436392187,0.42290519,2400.4,2399.9,2.88]
[1725436392188,0.41668,2400.3,2400.0,0.41671]